bitfinex/quotes_ETHUSD_20250420
["timestamp","ask_amount","ask_price","bid_price","bid_amount"]
[1745180807452,3.47092146,1590.7,1590.5,60.6318]
[1745180808688,3.0,1590.7,1590.5,60.6318]
[1745180811690,0.54908753,1590.8,1590.5,60.6318]
[1745180811863,11.27624053,1590.9,1590.5,61.58795097]
[1745180812056,5.13624053,1590.9,1590.5,60.83615097]
[1745180812255,5.13624053,1590.9,1590.6,0.7518]
[1745180812457,3.07857818,1591.0,1590.6,0.7518]
[1745180812654,11.27624053,1591.1,1590.6,0.7518]
[1745180812965,6.14,1591.1,1590.6,0.95615097]
[1745180813168,6.14,1591.1,1590.7,0.7518]
[1745180813693,6.21856873,1591.1,1590.7,0.7518]
[1745180814895,6.21856868,1591.1,1590.7,0.7518]
[1745180815098,5.13624053,1591.0,1590.7,0.7518]
[1745180815297,0.07857471,1590.9,1590.7,0.7518]
[1745180815884,5.13624053,1591.0,1590.7,0.7518]
[1745180816181,5.21481512,1591.0,1590.7,0.7518]
[1745180818602,5.13624053,1590.8,1590.5,59.88]
[1745180818807,5.13624053,1590.8,1590.5,60.7]
[1745180819011,0.62858069,1590.7,1590.5,60.7]
[1745180819682,0.55,1590.7,1590.5,60.7]
[1745180822522,1.02694363,1590.7,1590.5,60.7]
[1745180822675,0.55,1590.7,1590.5,60.7]
[1745180823405,11.35482797,1590.8,1590.5,60.7]
[1745180823609,6.14,1590.8,1590.5,60.7]
[1745180823807,6.14,1590.8,1590.6,0.8229]
[1745180824182,0.0785758,1591.1,1590.6,1.77905097]
[1745180824513,6.21856841,1591.2,1590.7,0.8229]
[1745180824747,6.14,1591.2,1590.8,0.8229]
[1745180824875,6.14,1591.2,1590.9,6.008]
[1745180825199,6.14,1591.2,1591.0,0.8229]
[1745180825378,11.45479758,1591.4,1591.0,0.8229]
[1745180825579,11.37624053,1591.4,1591.0,0.8229]
[1745180825888,6.24,1591.4,1591.0,0.8229]
[1745180826509,0.1,1591.4,1591.0,0.8229]
[1745180827417,0.55,1591.3,1591.0,0.8229]
[1745180827913,0.17854897,1591.4,1591.0,0.8229]
[1745180828116,0.1,1591.4,1591.0,0.8229]
[1745180829025,5.68624053,1591.3,1591.0,0.8229]
[1745180829585,0.55,1591.3,1591.0,0.8229]
[1745180831299,5.68624053,1591.3,1591.0,0.8229]
[1745180831500,6.88672025,1591.3,1591.0,0.8229]
[1745180831988,6.96527696,1591.3,1591.0,0.8229]
[1745180832510,5.76479724,1591.3,1591.0,0.8229]
[1745180833602,0.55,1591.3,1591.0,0.8229]
[1745180833933,6.31855655,1591.4,1591.0,0.8229]
[1745180834132,6.24,1591.4,1591.0,0.8229]
[1745180835304,0.1,1591.4,1591.1,0.95615097]
[1745180835626,0.1,1591.4,1591.2,0.8115]
[1745180835831,0.1,1591.4,1591.3,60.5195]
[1745180836637,0.1,1591.4,1591.3,62.45728704]
[1745180836794,6.14,1592.1,1591.4,0.8115]
[1745180837136,5.94824053,1592.2,1591.6,0.8115]
[1745180837370,5.13624053,1592.0,1591.7,5.873]
[1745180839932,0.62852617,1592.1,1591.7,5.873]
[1745180840134,3.0,1592.0,1591.7,5.873]
[1745180840801,5.7647667,1592.1,1591.7,5.873]
[1745180841006,0.55,1592.2,1591.8,0.777]
[1745180841407,5.21476168,1592.3,1591.8,0.777]
[1745180842123,0.07852115,1592.3,1591.8,0.777]
[1745180842435,6.24,1592.4,1591.8,0.777]
[1745180842844,0.07850502,1592.3,1591.8,0.777]
[1745180843140,5.68624053,1592.3,1591.8,0.777]
[1745180843445,7.67445192,1592.3,1591.8,0.777]
[1745180845123,13.95473505,1592.3,1591.8,0.777]
[1745180845441,7.59594222,1592.3,1591.8,0.777]
[1745180845623,7.67445632,1592.3,1591.8,0.777]
[1745180846108,5.76475463,1592.3,1591.8,0.777]
[1745180848946,5.13624053,1591.9,1591.6,0.7758]
[1745180849147,0.55,1591.8,1591.7,5.87]
[1745180850940,5.21477242,1591.9,1591.7,5.87]
[1745180851140,5.13624053,1591.9,1591.7,5.87]
[1745180851511,3.62853184,1592.0,1591.7,5.87]
[1745180855151,3.0,1592.0,1591.7,5.87]
[1745180856572,0.55,1591.9,1591.7,5.87]
[1745180857062,0.55,1591.9,1591.8,53.807]
[1745180863269,5.13624053,1592.3,1591.9,0.8045]
[1745180863462,5.21476028,1592.3,1591.9,0.8045]
[1745180863669,0.07851975,1592.3,1591.9,0.8045]
[1745180864972,0.17851094,1592.4,1591.9,0.8045]
[1745180865176,0.55,1592.3,1591.9,0.8045]
[1745180865764,5.68624053,1592.3,1591.9,0.8045]
[1745180867164,5.76475154,1592.3,1591.9,0.8045]
[1745180867541,5.68624053,1592.1,1592.0,5.767]
[1745180867857,5.76475938,1592.1,1592.0,5.767]
[1745180868374,7.05227499,1592.1,1592.0,5.767]
[1745180869264,6.97375614,1592.1,1592.0,5.767]
[1745180870268,3.0,1592.2,1592.0,6.5191]
[1745180870468,5.21476061,1592.3,1592.0,6.5191]
[1745180870675,3.07852008,1592.3,1592.0,6.5191]
[1745180870974,3.0,1592.3,1592.0,6.5191]
[1745180873678,3.0,1592.3,1592.1,53.803]
[1745180874380,3.88647496,1592.3,1592.1,53.803]
[1745180874947,5.76474978,1592.2,1592.1,53.803]
[1745180876577,8.76474978,1592.2,1592.1,53.803]
[1745180877884,15.04536779,1592.2,1592.1,53.803]
[1745180878070,14.96685854,1592.2,1592.1,53.803]
[1745180878253,17.26320248,1592.2,1592.0,5.767]
[1745180878460,0.07851987,1592.1,1592.0,5.767]
[1745180881177,11.06110432,1592.2,1592.0,5.767]
[1745180885490,17.34172887,1592.2,1592.0,5.767]
[1745180885690,17.72191367,1592.2,1592.0,5.767]
[1745180885854,11.44128912,1592.2,1592.0,5.767]
[1745180886056,11.51980895,1592.2,1592.0,5.767]
[1745180886584,11.0611043,1592.2,1592.0,5.767]
[1745180889291,0.55,1592.1,1592.0,5.767]
[1745180889785,5.23624053,1592.4,1592.1,0.8301]
[1745180889990,0.1,1592.4,1592.1,0.8301]
[1745180890703,5.23624053,1592.4,1592.1,0.8301]
[1745180894504,0.55,1592.3,1592.1,0.8301]
[1745180894686,0.62850152,1592.3,1592.1,0.8301]
[1745180894870,1.42340152,1592.3,1592.0,5.767]
[1745180896579,5.13624053,1592.2,1592.0,5.767]
[1745180898601,5.68624053,1592.2,1592.1,53.798]
[1745180898898,14.96685854,1592.2,1592.1,53.798]
[1745180901108,15.44690969,1592.2,1592.1,53.798]
[1745180902410,9.16629168,1592.2,1592.1,53.798]
[1745180902599,9.24480953,1592.2,1592.1,53.798]
[1745180902913,10.3153769,1592.2,1592.1,53.798]
[1745180903512,16.59599491,1592.2,1592.1,53.798]
[1745180903804,16.51747706,1592.2,1592.1,53.798]
[1745180906913,10.23685905,1592.2,1592.1,53.798]
[1745180907113,10.31537675,1592.2,1592.1,53.798]
[1745180908025,16.59599476,1592.2,1592.1,53.798]
[1745180908227,16.51747706,1592.2,1592.1,53.798]
[1745180910336,22.65747706,1592.2,1592.1,53.798]
[1745180911336,16.37685905,1592.2,1592.1,53.798]
[1745180911530,22.65747706,1592.2,1592.1,53.798]
[1745180911711,16.37685905,1592.2,1592.1,53.798]
[1745180913025,0.55,1592.1,1592.0,5.767]
[1745180913214,0.62851899,1592.1,1592.0,5.767]
[1745180913730,0.55,1592.1,1592.0,5.767]
[1745180914718,0.62851894,1592.1,1592.0,5.767]
[1745180915239,0.62851894,1592.1,1592.0,6.5492]
[1745180915445,0.55,1592.1,1592.0,6.5492]
[1745180915819,9.14,1592.2,1592.0,6.5492]
[1745180916722,6.14,1592.2,1592.0,6.5492]
[1745180917757,6.14,1592.2,1592.1,53.803]
[1745180918053,11.27624053,1592.2,1592.1,53.803]
[1745180919524,11.82624053,1592.2,1592.1,53.803]
[1745180920229,18.13537177,1592.2,1592.1,53.803]
[1745180920560,11.77624053,1592.2,1592.1,53.803]
[1745180920767,11.85475374,1592.2,1592.1,53.803]
[1745180921251,11.77624053,1592.2,1592.1,53.803]
[1745180922066,12.2435944,1592.2,1592.1,53.803]
[1745180922262,11.22624053,1592.2,1592.1,54.5852]
[1745180923463,11.77624053,1592.2,1592.1,53.803]
[1745180923931,20.01213391,1592.2,1592.1,53.803]
[1745180925458,23.01213391,1592.2,1592.1,53.803]
[1745180926048,23.48986457,1592.2,1592.1,53.803]
[1745180927792,4.3574,1591.8,1591.4,54.6204]
[1745180928077,5.68624053,1591.6,1591.5,5.564]
[1745180930340,6.09,1591.7,1591.6,0.7768]
[1745180933742,8.13624053,1591.8,1591.6,0.7768]
[1745180933941,8.21477178,1591.8,1591.6,0.7768]
[1745180934254,8.209777,1591.8,1591.6,0.7768]
[1745180934567,0.55,1591.7,1591.6,0.7768]
[1745180936673,0.55,1591.7,1591.5,5.564]
[1745180936974,0.55,1591.7,1591.5,6.3197]
[1745180937162,0.62853753,1591.7,1591.5,6.3197]
[1745180937364,0.55,1591.7,1591.5,6.3197]
[1745180941585,8.20978327,1591.8,1591.5,6.3197]
[1745180941791,8.13124575,1591.8,1591.5,6.3197]
[1745180946383,8.13124575,1591.8,1591.6,53.814]
[1745180949005,8.209777,1591.8,1591.6,53.814]
[1745180950708,0.55,1591.7,1591.6,53.814]
[1745180953004,8.13124575,1591.8,1591.6,53.814]
[1745180953506,6.09,1592.1,1591.7,0.7856]
[1745180954380,6.16851721,1592.1,1591.7,0.7856]
[1745180954589,5.13624053,1592.0,1591.7,0.7856]
[1745180957113,5.13624053,1592.0,1591.8,5.564]
[1745180962117,5.68624053,1592.0,1591.9,53.809]
[1745180972990,5.13624053,1592.0,1591.9,53.809]
[1745180980066,6.09,1592.1,1591.9,53.809]
[1745180980431,6.09,1592.1,1592.0,0.7697]
[1745180980595,14.22624053,1592.2,1592.0,0.7697]
[1745180980930,11.22624053,1592.2,1592.0,0.7697]
[1745180981103,5.13624053,1592.2,1592.0,0.7697]
[1745180981303,2.36341121,1592.2,1592.0,0.7697]
[1745180982738,2.36341121,1592.2,1591.9,53.809]
[1745180982936,2.36341121,1592.0,1591.9,53.809]
[1745180983430,5.12169059,1592.2,1591.9,53.809]
[1745180983741,5.20020162,1592.2,1591.9,53.809]
[1745180984447,5.12169059,1592.2,1591.9,53.809]
[1745180985840,5.12169059,1592.0,1591.9,53.809]
[1745180986044,11.76169059,1592.0,1591.9,53.809]
[1745180988048,11.84021234,1592.0,1591.9,53.809]
[1745180988615,0.7654,1591.6,1591.1,53.803]
[1745180988817,14.55878118,1591.2,1591.1,53.803]
[1745180989056,14.55878118,1591.2,1591.1,59.364]
[1745180989548,20.84334628,1591.2,1591.1,59.364]
[1745180989752,15.72165569,1591.2,1591.1,59.364]
[1745180991051,18.53123921,1591.2,1591.1,59.364]
[1745180991244,23.6529298,1591.2,1591.1,59.364]
[1745180992254,24.11702962,1591.2,1591.1,59.364]
[1745180992553,30.20702962,1591.2,1591.1,59.364]
[1745180995262,30.19772962,1591.2,1591.1,59.366]
[1745180999344,22.26645551,1591.2,1591.1,59.366]
[1745181000864,12.43189041,1591.2,1591.1,59.366]
[1745181001068,6.55409982,1591.2,1591.1,59.366]
[1745181001244,7.18266488,1591.2,1591.1,59.366]
[1745181001447,6.55409982,1591.2,1591.1,59.366]
[1745181002044,6.09,1591.2,1591.1,60.156]
[1745181007776,5.12169059,1591.3,1591.1,60.156]
[1745181007951,0.55,1591.2,1591.1,59.366]
[1745181009260,5.59279646,1591.3,1591.1,59.366]
[1745181009466,0.55,1591.2,1591.1,59.366]
[1745181012141,14.33710018,1591.2,1591.1,59.366]
[1745181012461,8.05253508,1591.2,1591.1,59.366]
[1745181012668,6.64,1591.2,1591.1,59.366]
[1745181013949,6.71856561,1591.2,1591.1,59.366]
[1745181016871,13.00313071,1591.2,1591.1,59.366]
[1745181017059,12.9245651,1591.2,1591.1,59.366]
[1745181018683,6.64,1591.2,1591.1,59.366]
[1745181018861,6.71856545,1591.2,1591.1,59.366]
[1745181019189,13.00313055,1591.2,1591.1,59.366]
[1745181019487,12.9245651,1591.2,1591.1,5.563]
[1745181020379,15.02352676,1591.2,1591.1,5.563]
[1745181022891,12.9245651,1591.2,1591.1,5.563]
[1745181024969,6.09,1591.2,1591.1,5.563]
[1745181025170,6.64,1591.2,1591.1,5.563]
[1745181028898,12.9245651,1591.2,1591.1,5.563]
[1745181029317,15.9245651,1591.2,1591.1,5.563]
[1745181029473,24.60422704,1591.2,1591.1,5.563]
[1745181029811,10.61315512,1591.0,1590.9,53.833]
[1745181030005,15.81342286,1591.0,1590.9,59.395]
[1745181030175,15.73484571,1591.0,1590.9,59.395]
[1745181033377,21.82484571,1591.0,1590.9,59.395]
[1745181033576,24.63584394,1591.0,1590.9,59.395]
[1745181037009,24.9630146,1591.0,1590.9,59.395]
[1745181038933,24.63584394,1591.0,1590.9,59.395]
[1745181039725,24.63584394,1591.0,1590.9,59.895]
[1745181044944,24.63584394,1591.0,1590.9,6.062]
[1745181049247,31.24284394,1591.0,1590.9,6.062]
[1745181049545,0.55,1590.6,1590.5,53.848]
[1745181049721,11.76169059,1590.6,1590.5,59.409]
[1745181049920,18.04862633,1590.6,1590.5,59.409]
[1745181050304,11.76169059,1590.6,1590.5,59.409]
[1745181051146,6.09,1590.6,1590.5,59.409]
[1745181051446,22.50451303,1590.6,1590.5,59.409]
[1745181051752,21.65762633,1590.6,1590.5,59.409]
[1745181055552,22.13948975,1590.6,1590.5,59.409]
[1745181058868,0.55,1590.0,1589.9,54.6485]
[1745181059016,21.81354317,1590.0,1589.9,59.42]
[1745181059215,21.7349233,1590.0,1589.9,59.42]
[1745181060548,11.76169059,1590.0,1589.9,59.42]
[1745181062854,12.23289502,1590.0,1589.9,60.2425]
[1745181065250,6.09,1590.0,1589.9,60.2425]
[1745181065938,3.0,1590.2,1589.9,60.2425]
[1745181065939,6.09,1590.3,1590.0,0.8055]
[1745181067152,6.09,1590.5,1590.0,0.8055]
[1745181068052,5.12169059,1590.4,1590.0,0.8055]
[1745181069953,6.55019088,1590.5,1590.0,0.8055]
[1745181070319,6.09,1590.5,1590.0,0.8055]
[1745181072157,11.21169059,1590.7,1590.0,0.8055]
[1745181072962,11.29027579,1590.7,1590.0,0.8055]
[1745181074423,5.12169059,1590.5,1590.0,0.8055]
[1745181074773,5.12169059,1590.3,1590.0,0.8055]
[1745181075578,5.12169059,1590.3,1590.0,0.64836613]
[1745181076497,5.67169059,1590.1,1590.0,0.64836613]
[1745181076680,5.67169059,1590.1,1590.0,6.21036613]
[1745181077584,6.85572092,1590.1,1590.0,5.562]
[1745181077786,7.31697401,1590.1,1590.0,5.562]
[1745181078249,5.12169059,1590.1,1590.0,5.562]
[1745181078593,6.09,1590.2,1590.0,6.3156]
[1745181080094,12.03921048,1590.1,1590.0,5.562]
[1745181080258,5.75029784,1590.1,1590.0,5.562]
[1745181080458,8.75029784,1590.1,1590.0,5.562]
[1745181080660,10.90781292,1590.1,1590.0,6.3156]
[1745181081483,10.90781292,1590.1,1590.0,5.562]
[1745181082291,18.03784188,1590.1,1590.0,5.562]
[1745181082488,17.95922556,1590.1,1590.0,5.562]
[1745181082692,24.04922556,1590.1,1590.0,5.562]
[1745181085481,7.60560817,1590.0,1589.9,59.418]
[1745181085677,13.75120016,1590.0,1589.9,59.418]
[1745181085882,0.55,1589.5,1589.3,0.7536]
[1745181086220,11.76169059,1589.5,1589.4,5.56]
[1745181086615,6.09,1589.5,1589.4,5.56]
[1745181086794,6.09,1589.5,1589.4,6.3834]
[1745181089324,6.09,1589.6,1589.4,6.3834]
[1745181090589,5.12169059,1589.5,1589.4,6.3834]
[1745181090823,5.67169059,1589.5,1589.4,6.3834]
[1745181091726,0.55,1589.5,1589.4,6.3834]
[1745181092535,0.55,1589.4,1589.1,0.9109]
[1745181092702,1.78116906,1589.4,1589.2,5.561]
[1745181094738,5.12169059,1589.3,1589.2,5.561]
[1745181095390,5.12169059,1589.3,1589.2,59.44]
[1745181096531,11.29034142,1589.5,1589.2,59.44]
[1745181096691,11.21169059,1589.5,1589.2,59.44]
[1745181096896,11.21169059,1589.5,1589.3,0.7894]
[1745181097694,0.85964404,1589.4,1589.2,53.879]
[1745181097922,0.62864404,1589.4,1589.3,5.562]
[1745181098724,0.07864404,1589.4,1589.3,5.562]
[1745181098913,7.31321894,1589.5,1589.3,5.562]
[1745181099112,12.43490953,1589.5,1589.3,5.562]
[1745181099413,11.21169059,1589.5,1589.3,5.562]
[1745181100250,11.2903361,1589.5,1589.3,5.562]
[1745181100654,11.21169059,1589.5,1589.3,5.562]
[1745181100854,11.21169059,1589.5,1589.3,6.3514]
[1745181103538,14.21169059,1589.7,1589.3,6.3514]
[1745181104368,11.68753407,1589.7,1589.3,5.562]
[1745181104674,11.68753407,1589.7,1589.4,0.7894]
[1745181105185,11.21169059,1589.7,1589.4,0.7894]
[1745181106270,12.33285965,1589.7,1589.4,0.7894]
[1745181107740,12.80634747,1589.7,1589.4,0.7894]
[1745181108169,12.33285965,1589.7,1589.4,0.7894]
[1745181109586,7.28980457,1589.7,1589.4,0.7894]
[1745181109878,5.12169059,1589.5,1589.4,0.7894]
[1745181111269,5.12169059,1589.5,1589.3,6.3787]
[1745181111468,0.55,1589.4,1589.3,5.562]
[1745181112664,6.64,1589.4,1589.3,5.562]
[1745181121990,6.09,1589.4,1589.3,5.562]
[1745181124288,6.71864346,1589.4,1589.3,5.562]
[1745181125303,6.64,1589.4,1589.3,5.562]
[1745181125506,12.42569059,1589.4,1589.3,5.562]
[1745181127669,12.50434061,1589.4,1589.3,5.562]
[1745181130213,19.589823,1589.4,1589.3,5.562]
[1745181130384,22.51117298,1589.4,1589.3,5.562]
[1745181133806,6.754,1589.4,1589.3,5.562]
[1745181133986,6.09,1589.4,1589.3,5.562]
[1745181135293,6.64,1589.4,1589.3,5.562]
[1745181135697,6.71864915,1589.4,1589.3,5.562]
[1745181135996,16.78743154,1589.4,1589.3,5.562]
[1745181136305,19.52884117,1589.4,1589.3,5.562]
[1745181138196,10.6195742,1589.2,1589.1,5.66]
[1745181138409,15.81993767,1589.2,1589.1,5.66]
[1745181138721,15.74126479,1589.2,1589.1,5.66]
[1745181138883,17.9445991,1589.2,1589.1,5.66]
[1745181140880,11.6521249,1589.2,1589.1,5.66]
[1745181141128,11.73079261,1589.2,1589.1,5.66]
[1745181141975,17.82079261,1589.2,1589.1,5.66]
[1745181142177,24.0345991,1589.2,1589.1,5.66]
[1745181146027,18.22022156,1589.2,1589.1,5.66]
[1745181148119,24.51269576,1589.2,1589.1,5.66]
[1745181150023,24.51269576,1589.2,1588.9,0.0678233]
[1745181150024,10.5971662,1589.0,1588.9,0.0678233]
[1745181150256,18.95387578,1589.0,1588.9,5.6258233]
[1745181150438,18.87518775,1589.0,1588.9,5.6258233]
[1745181151106,18.87518775,1589.0,1588.9,0.0678233]
[1745181151308,23.99687834,1589.0,1588.9,0.0678233]
[1745181152527,17.70361214,1589.0,1588.9,0.0678233]
[1745181154213,16.94971214,1589.0,1588.9,0.0678233]
[1745181156217,5.99,1589.0,1588.9,0.0678233]
[1745181156416,5.99,1589.0,1588.9,2.71552198]
[1745181157125,5.99,1589.3,1589.1,2.64739586]
[1745181157353,5.99,1589.3,1589.2,5.559]
[1745181157857,6.54,1589.3,1589.2,5.559]
[1745181158059,5.99,1589.3,1589.2,5.559]
[1745181158855,6.54,1589.3,1589.2,5.559]
[1745181159025,5.99,1589.3,1589.2,5.559]
[1745181159660,6.54,1589.3,1589.2,5.559]
[1745181160028,11.66169059,1589.3,1589.2,5.559]
[1745181160327,12.88219299,1589.3,1589.2,5.559]
[1745181161259,6.54,1589.3,1589.2,5.559]
[1745181162628,6.54,1589.3,1589.2,7.44674226]
[1745181162819,6.54,1589.3,1589.2,5.559]
[1745181168654,6.54,1589.3,1589.2,5.557]
[1745181171963,11.66169059,1589.3,1589.2,5.557]
[1745181172138,14.33087431,1589.3,1589.2,5.557]
[1745181172965,13.51137431,1589.3,1589.2,5.557]
[1745181179277,6.29461984,1588.7,1588.2,2.70520223]
[1745181179494,5.12169059,1588.4,1588.2,6.3703]
[1745181179634,5.20039468,1588.4,1588.2,8.25923086]
[1745181179981,0.46557247,1588.4,1588.2,8.25923086]
[1745181180286,0.47895397,1588.4,1588.2,2.70523086]
[1745181180488,0.47895397,1588.4,1588.2,2.70518571]
[1745181180647,0.62870424,1588.5,1588.3,5.554]
[1745181181902,1.10190982,1588.5,1588.3,5.554]
[1745181182053,1.02320558,1588.5,1588.4,1.88869302]
[1745181182253,0.47320558,1588.5,1588.4,1.88869302]
[1745181182480,8.12169059,1588.6,1588.4,2.0100608]
[1745181182652,8.12169059,1588.6,1588.4,2.04909765]
[1745181184352,8.99672909,1588.6,1588.4,2.04909765]
[1745181185062,0.55,1588.5,1588.3,5.554]
[1745181185268,1.09083125,1588.5,1588.4,0.15935123]
[1745181185466,1.09083125,1588.5,1588.3,5.554]
[1745181185666,1.09083125,1588.5,1588.4,5.71435123]
[1745181185973,2.09958728,1588.5,1588.4,5.71435123]
[1745181186178,2.91728728,1588.5,1588.4,5.71435123]
[1745181188187,2.09958728,1588.5,1588.4,5.66435123]
[1745181188395,2.09958728,1588.5,1588.4,5.71031623]
[1745181188582,2.02089719,1588.5,1588.4,5.71031623]
[1745181188888,2.02089719,1588.5,1588.4,5.555]
[1745181189085,8.01089719,1588.5,1588.4,5.71031623]
[1745181189494,6.45214116,1588.5,1588.4,7.59900925]
[1745181190498,5.99,1588.8,1588.6,1.88835539]
[1745181190797,6.54,1588.8,1588.7,1.88833637]
[1745181190996,11.11169059,1588.8,1588.7,0.15281478]
[1745181191292,11.66169059,1588.8,1588.6,1.88835539]
[1745181191494,11.66169059,1588.8,1588.7,0.15281478]
[1745181191689,12.83572784,1588.8,1588.5,56.5929297]
[1745181191858,12.83572784,1588.8,1588.6,0.15281478]
[1745181193483,13.31595861,1588.8,1588.6,0.15281478]
[1745181194904,1.44638182,1588.7,1588.6,0.15281478]
[1745181195606,1.44638182,1588.7,1588.6,5.70781478]
[1745181195802,2.86761586,1588.7,1588.6,5.70781478]
[1745181197092,1.97123404,1588.7,1588.6,5.70781478]
[1745181197435,0.55,1588.7,1588.6,7.59627002]
[1745181197588,7.02023077,1588.8,1588.7,1.88833637]
[1745181198005,7.02023077,1588.8,1588.7,2.03733299]
[1745181198383,7.02023077,1588.8,1588.7,7.59233299]
[1745181198710,6.47023077,1588.8,1588.7,7.59233299]
[1745181200816,0.48023077,1588.8,1588.7,7.59233299]
[1745181200989,5.99,1588.9,1588.7,9.48066936]
[1745181201190,9.54,1588.9,1588.8,1.88821752]
[1745181201391,11.44172906,1588.9,1588.8,5.555]
[1745181201931,11.52040526,1588.9,1588.8,5.70399662]
[1745181202611,11.99953486,1588.9,1588.8,5.70399662]
[1745181205191,10.0978058,1588.9,1588.8,5.70399662]
[1745181206087,10.0978058,1588.9,1588.8,5.70199662]
[1745181208393,10.0978058,1588.9,1588.8,7.59021414]
[1745181208703,10.0191296,1588.9,1588.8,7.59021414]
[1745181209097,10.09780564,1588.9,1588.8,5.70199662]
[1745181209305,11.70031526,1588.9,1588.8,5.70199662]
[1745181210009,8.62163922,1588.9,1588.8,5.70199662]
[1745181210210,8.62163922,1588.9,1588.8,7.59021414]
[1745181211032,8.62163922,1588.9,1588.8,5.70199662]
[1745181211033,8.70031524,1588.9,1588.8,5.70199662]
[1745181215136,8.62163922,1588.9,1588.8,5.70199662]
[1745181217833,2.63163922,1588.9,1588.8,5.70199662]
[1745181218035,1.0291296,1588.9,1588.8,5.70199662]
[1745181221040,1.0291296,1588.9,1588.8,0.14899662]
[1745181221333,1.0291296,1588.9,1588.8,5.70199662]
[1745181223044,1.0291296,1588.9,1588.8,7.59021414]
[1745181223210,1.0291296,1588.9,1588.8,5.70199662]
[1745181223537,1.7326394,1588.9,1588.8,5.70199662]
[1745181224105,1.7326394,1588.9,1588.8,7.59021414]
[1745181224842,1.7326394,1588.9,1588.8,5.70199662]
[1745181225939,1.7326394,1588.9,1588.8,0.14899662]
[1745181226143,1.7326394,1588.9,1588.8,7.59021414]
[1745181226437,0.4791296,1588.9,1588.8,7.59021414]
[1745181226638,5.98476054,1589.2,1589.0,1.8879185]
[1745181226841,5.20036054,1589.2,1589.0,1.88790538]
[1745181227013,5.20036054,1589.2,1589.1,0.14517957]
[1745181227213,5.98380497,1589.2,1589.1,0.14517957]
[1745181227415,2.71274774,1589.3,1589.1,2.03298623]
[1745181227613,5.20035155,1589.4,1589.2,5.553]
[1745181227814,11.97113221,1589.4,1589.2,5.553]
[1745181228135,0.55,1589.3,1589.2,5.553]
[1745181228448,0.55,1589.3,1589.2,5.69699513]
[1745181229216,1.25138149,1589.3,1589.2,5.69699513]
[1745181229434,1.25138149,1589.3,1589.2,0.14399513]
[1745181229633,1.25138149,1589.3,1589.2,5.69699513]
[1745181229816,1.25138149,1589.3,1589.2,5.553]
[1745181230018,1.25138149,1589.3,1589.2,5.69699513]
[1745181230215,0.55,1589.3,1589.2,5.69699513]
[1745181231139,10.65557827,1589.3,1589.2,5.553]
[1745181232260,10.73424327,1589.3,1589.2,5.553]
[1745181233343,0.8135,1588.9,1588.7,1.88826233]
[1745181233550,0.55,1588.8,1588.7,1.88826233]
[1745181233754,0.62867912,1588.8,1588.7,7.44126233]
[1745181234359,0.62867912,1588.8,1588.7,5.553]
[1745181234739,1.10481423,1588.8,1588.7,5.553]
[1745181235162,4.80881471,1588.8,1588.7,5.553]
[1745181236121,4.80881471,1588.8,1588.7,5.55]
[1745181236326,4.80881471,1588.8,1588.7,5.67344286]
[1745181237129,4.80881471,1588.8,1588.7,5.67444286]
[1745181237329,11.10287311,1588.8,1588.7,5.67444286]
[1745181238330,11.91637311,1588.8,1588.7,5.67444286]
[1745181238650,11.91637311,1588.8,1588.7,0.12344286]
[1745181238822,11.91637311,1588.8,1588.7,5.551]
[1745181239255,11.91637311,1588.8,1588.7,5.67444286]
[1745181240130,5.62231471,1588.8,1588.7,5.67444286]
[1745181240332,4.10481423,1588.8,1588.7,5.67444286]
[1745181240646,4.02613511,1588.8,1588.7,7.56277923]
[1745181240852,3.47613511,1588.8,1588.7,7.56277923]
[1745181241050,4.02613511,1588.8,1588.7,7.56277923]
[1745181241550,1.02613511,1588.8,1588.7,5.67444286]
[1745181246267,16.67956608,1588.8,1588.7,5.67444286]
[1745181248358,16.67956608,1588.8,1588.7,0.12344286]
[1745181248559,16.67956608,1588.8,1588.7,5.551]
[1745181248766,16.67956608,1588.8,1588.7,5.68510123]
[1745181249867,16.67956608,1588.8,1588.7,0.13410123]
[1745181250166,16.67956608,1588.8,1588.7,5.551]
[1745181250336,16.67956608,1588.8,1588.7,5.68510123]
[1745181250970,8.5978257,1588.8,1588.7,7.5734376]
[1745181251155,3.47613511,1588.8,1588.7,5.68510123]
[1745181251343,4.10481855,1588.8,1588.7,5.68510123]
[1745181252278,0.47613511,1588.8,1588.7,7.5734376]
[1745181252451,3.0,1589.1,1588.8,1.88817994]
[1745181252452,0.07867414,1589.0,1588.8,1.88817994]
[1745181252766,5.20036473,1589.0,1588.9,0.13475933]
[1745181252934,0.55,1588.9,1588.8,1.88817994]
[1745181253138,0.55,1588.9,1588.8,2.02293927]
[1745181253553,0.55,1588.9,1588.8,0.13475933]
[1745181254756,1.02923397,1588.9,1588.8,0.13475933]
[1745181255187,1.02923397,1588.9,1588.8,2.02297685]
[1745181255479,1.02923397,1588.9,1588.8,0.13475933]
[1745181256284,1.02923397,1588.9,1588.8,2.02297685]
[1745181256481,1.02923397,1588.9,1588.8,0.13475933]
[1745181262699,1.65219384,1588.9,1588.8,0.13475933]
[1745181264205,1.02923397,1588.9,1588.8,0.13475933]
[1745181264707,1.79303397,1588.9,1588.8,0.13475933]
[1745181264881,4.79303397,1588.9,1588.8,0.13475933]
[1745181265203,11.16537908,1588.9,1588.8,0.13475933]
[1745181266881,11.55877088,1588.9,1588.8,0.13475933]
[1745181267311,13.85616937,1588.9,1588.8,0.13475933]
[1745181267504,13.77748654,1588.9,1588.8,0.13475933]
[1745181270122,13.77748654,1588.9,1588.8,5.548]
[1745181270519,13.77748654,1588.9,1588.8,5.6809168]
[1745181273514,13.77748654,1588.9,1588.8,0.1329168]